[Event "*** Titled Tuesday Blitz"]
[Site "Chess.com"]
[Date "2021.03.30"]
[Round "6"]
[White "Cryptochess"]
[Black "tandaleo"]
[Result "1-0"]
[WhiteElo "2577"]
[BlackElo "2348"]
[TimeControl "180+1"]
[EndTime "11:06:13 PDT"]
[Termination "Cryptochess won by checkmate"]

1. e4 {[%clk 0:03:00.9]} 1... d6 {[%clk 0:02:59]} 2. d4 {[%clk 0:02:58.6]} 2...
Nf6 {[%clk 0:02:58.6]} 3. Nc3 {[%clk 0:02:59.2]} 3... g6 {[%clk 0:02:58.3]} 4.
f4 {[%clk 0:02:59.4]} 4... Bg7 {[%clk 0:02:53.7]} 5. Nf3 {[%clk 0:02:59.9]} 5...
O-O {[%clk 0:02:53.9]} 6. Bc4 {[%clk 0:02:59.4]} 6... Nc6 {[%clk 0:02:52.4]} 7.
e5 {[%clk 0:02:55.4]} 7... dxe5 {[%clk 0:02:51.7]} 8. dxe5 {[%clk 0:02:54.3]}
8... Qxd1+ {[%clk 0:02:49.8]} 9. Nxd1 {[%clk 0:02:54]} 9... Ne4 {[%clk
0:02:47.2]} 10. c3 {[%clk 0:02:47.7]} 10... h5 {[%clk 0:02:39.1]} 11. Be3 {[%clk
0:02:31.3]} 11... Bf5 {[%clk 0:02:29.1]} 12. O-O {[%clk 0:02:26.8]} 12... Rad8
{[%clk 0:02:26.1]} 13. Re1 {[%clk 0:02:16.2]} 13... g5 {[%clk 0:02:05.8]} 14. g3
{[%clk 0:01:41.1]} 14... e6 {[%clk 0:01:18.2]} 15. a4 {[%clk 0:01:24.9]} 15...
Rd7 {[%clk 0:01:13.1]} 16. a5 {[%clk 0:01:23.4]} 16... a6 {[%clk 0:01:11.1]} 17.
b4 {[%clk 0:01:16.4]} 17... Rfd8 {[%clk 0:01:10.3]} 18. b5 {[%clk 0:01:15.9]}
18... axb5 {[%clk 0:00:41.9]} 19. Bxb5 {[%clk 0:01:16.8]} 19... Rxd1 {[%clk
0:00:27.5]} 20. Raxd1 {[%clk 0:00:52]} 20... Rxd1 {[%clk 0:00:26.9]} 21. Rxd1
{[%clk 0:00:51.8]} 21... Nxc3 {[%clk 0:00:26.2]} 22. Rd7 {[%clk 0:00:35.9]}
22... Nxb5 {[%clk 0:00:25.8]} 23. Nxg5 {[%clk 0:00:36.5]} 23... Bg6 {[%clk
0:00:20.3]} 24. h3 {[%clk 0:00:36.4]} 24... Bf8 {[%clk 0:00:19.4]} 25. g4 {[%clk
0:00:36.3]} 25... hxg4 {[%clk 0:00:19.4]} 26. hxg4 {[%clk 0:00:37.2]} 26... Bb4
{[%clk 0:00:17.9]} 27. Bf2 {[%clk 0:00:31.1]} 27... Bxa5 {[%clk 0:00:17.1]} 28.
Bh4 {[%clk 0:00:30.7]} 28... Bb6+ {[%clk 0:00:15.2]} 29. Kg2 {[%clk 0:00:30.1]}
29... Nbd4 {[%clk 0:00:15.3]} 30. Nh3 {[%clk 0:00:25.5]} 30... Be4+ {[%clk
0:00:10.9]} 31. Kg3 {[%clk 0:00:21.3]} 31... Ne2+ {[%clk 0:00:10.5]} 32. Kh2
{[%clk 0:00:21.4]} 32... Ncd4 {[%clk 0:00:10.2]} 33. Rd8+ {[%clk 0:00:16.8]}
33... Kh7 {[%clk 0:00:09.1]} 34. Ng5+ {[%clk 0:00:17]} 34... Kg6 {[%clk
0:00:08.8]} 35. Nxe4 {[%clk 0:00:17.5]} 35... Nf3+ {[%clk 0:00:09.3]} 36. Kh3
{[%clk 0:00:17.9]} 36... Nxh4 {[%clk 0:00:08.3]} 37. Kxh4 {[%clk 0:00:18.8]}
37... Nxf4 {[%clk 0:00:08.7]} 38. Rg8+ {[%clk 0:00:18.6]} 38... Kh7 {[%clk
0:00:08.6]} 39. Nf6+ {[%clk 0:00:19]} 39... Kh6 {[%clk 0:00:07.9]} 40. g5#
{[%clk 0:00:19.9]} 1-0

[Event "*** Titled Tuesday Blitz"]
[Site "Chess.com"]
[Date "2021.03.30"]
[Round "6"]
[White "biveklama"]
[Black "mamonika"]
[Result "1-0"]
[WhiteElo "2316"]
[BlackElo "2048"]
[TimeControl "180+1"]
[EndTime "11:06:15 PDT"]
[Termination "biveklama won on time"]

1. e4 {[%clk 0:02:24.7]} 1... c5 {[%clk 0:02:59.8]} 2. Nf3 {[%clk 0:02:23.4]}
2... Nc6 {[%clk 0:02:55.5]} 3. d4 {[%clk 0:02:23.3]} 3... cxd4 {[%clk
0:02:55.3]} 4. Nxd4 {[%clk 0:02:24.2]} 4... g6 {[%clk 0:02:53.2]} 5. b3 {[%clk
0:02:19.3]} 5... Bg7 {[%clk 0:02:53.1]} 6. Bb2 {[%clk 0:02:19]} 6... Nf6 {[%clk
0:02:51.3]} 7. Nxc6 {[%clk 0:02:11.7]} 7... bxc6 {[%clk 0:02:51]} 8. e5 {[%clk
0:02:12.1]} 8... Nd5 {[%clk 0:02:50.5]} 9. c4 {[%clk 0:02:11.7]} 9... Qa5+
{[%clk 0:02:44.8]} 10. Qd2 {[%clk 0:02:07.9]} 10... Qxd2+ {[%clk 0:02:31.1]} 11.
Nxd2 {[%clk 0:02:08.8]} 11... Nb4 {[%clk 0:02:31.5]} 12. Kd1 {[%clk 0:01:50.3]}
12... d6 {[%clk 0:02:19.5]} 13. f4 {[%clk 0:01:32.6]} 13... Bf5 {[%clk
0:02:17.7]} 14. h3 {[%clk 0:01:13.9]} 14... h5 {[%clk 0:02:12.5]} 15. Bc3 {[%clk
0:01:06.8]} 15... a5 {[%clk 0:01:36.5]} 16. a3 {[%clk 0:00:59.7]} 16... Na6
{[%clk 0:01:22.8]} 17. b4 {[%clk 0:00:43.5]} 17... a4 {[%clk 0:01:11.8]} 18. Kc1
{[%clk 0:00:37.4]} 18... O-O {[%clk 0:01:00.5]} 19. Kb2 {[%clk 0:00:36.4]} 19...
dxe5 {[%clk 0:00:50.5]} 20. fxe5 {[%clk 0:00:29]} 20... Rfd8 {[%clk 0:00:50.1]}
21. Nf3 {[%clk 0:00:27.6]} 21... Rd7 {[%clk 0:00:34.6]} 22. Be2 {[%clk
0:00:27.8]} 22... Rad8 {[%clk 0:00:33.9]} 23. Rad1 {[%clk 0:00:28.4]} 23... Rxd1
{[%clk 0:00:33.4]} 24. Rxd1 {[%clk 0:00:29.3]} 24... Rxd1 {[%clk 0:00:33.6]} 25.
Bxd1 {[%clk 0:00:30.2]} 25... Bd3 {[%clk 0:00:34]} 26. Nd2 {[%clk 0:00:28.8]}
26... Bh6 {[%clk 0:00:23.7]} 27. Bxa4 {[%clk 0:00:28.8]} 27... Bxd2 {[%clk
0:00:23.5]} 28. Bxd2 {[%clk 0:00:29.7]} 28... Bxc4 {[%clk 0:00:23.9]} 29. Bxc6
{[%clk 0:00:30.4]} 29... Nc7 {[%clk 0:00:22.2]} 30. a4 {[%clk 0:00:28.8]} 30...
f6 {[%clk 0:00:18.2]} 31. exf6 {[%clk 0:00:28.4]} 31... exf6 {[%clk 0:00:17.8]}
32. b5 {[%clk 0:00:29]} 32... Nd5 {[%clk 0:00:13.6]} 33. a5 {[%clk 0:00:27]}
33... Kf7 {[%clk 0:00:12.3]} 34. a6 {[%clk 0:00:27.1]} 34... Nb6 {[%clk
0:00:12.1]} 35. a7 {[%clk 0:00:27.1]} 35... Na4+ {[%clk 0:00:03.7]} 36. Ka3
{[%clk 0:00:26.7]} 36... Nb6 {[%clk 0:00:04]} 37. Be3 {[%clk 0:00:27.3]} 1-0

[Event "*** Titled Tuesday Blitz"]
[Site "Chess.com"]
[Date "2021.03.30"]
[Round "6"]
[White "anasta10"]
[Black "enriquetejedor"]
[Result "1/2-1/2"]
[WhiteElo "2493"]
[BlackElo "2609"]
[TimeControl "180+1"]
[EndTime "11:06:16 PDT"]
[Termination "Game drawn by repetition"]

1. d4 {[%clk 0:03:00.9]} 1... d5 {[%clk 0:02:59.3]} 2. c4 {[%clk 0:02:58.7]}
2... e5 {[%clk 0:02:57.5]} 3. dxe5 {[%clk 0:02:55.1]} 3... d4 {[%clk 0:02:58.4]}
4. Nf3 {[%clk 0:02:55.4]} 4... Nc6 {[%clk 0:02:55.9]} 5. e3 {[%clk 0:02:55.6]}
5... Bc5 {[%clk 0:02:49.6]} 6. exd4 {[%clk 0:02:54.7]} 6... Nxd4 {[%clk
0:02:49.6]} 7. Nc3 {[%clk 0:02:52.1]} 7... Bg4 {[%clk 0:02:41]} 8. Be2 {[%clk
0:02:49.7]} 8... Nxf3+ {[%clk 0:02:30.2]} 9. Bxf3 {[%clk 0:02:43.3]} 9... Qxd1+
{[%clk 0:02:31.1]} 10. Bxd1 {[%clk 0:02:39.9]} 10... Bxd1 {[%clk 0:02:32]} 11.
Nxd1 {[%clk 0:02:39]} 11... Ne7 {[%clk 0:02:26.1]} 12. Be3 {[%clk 0:02:27.3]}
12... Bxe3 {[%clk 0:02:18.8]} 13. Nxe3 {[%clk 0:02:28.2]} 13... Ng6 {[%clk
0:02:16.5]} 14. O-O-O {[%clk 0:02:20.6]} 14... Nxe5 {[%clk 0:02:07.8]} 15. Nd5
{[%clk 0:02:18.7]} 15... O-O {[%clk 0:02:06.8]} 16. b3 {[%clk 0:02:14.6]} 16...
c6 {[%clk 0:02:04.1]} 17. Nc3 {[%clk 0:02:14.8]} 17... Rad8 {[%clk 0:02:03.2]}
18. Kc2 {[%clk 0:02:14.7]} 18... Ng4 {[%clk 0:02:02.8]} 19. Rhe1 {[%clk
0:01:28.6]} 19... Nxf2 {[%clk 0:01:56.9]} 20. Rxd8 {[%clk 0:01:26]} 20... Rxd8
{[%clk 0:01:57.8]} 21. Re7 {[%clk 0:01:25.8]} 21... Rb8 {[%clk 0:01:58.3]} 22.
h3 {[%clk 0:01:24]} 22... h5 {[%clk 0:01:49.5]} 23. Kd2 {[%clk 0:01:08.4]} 23...
h4 {[%clk 0:01:42]} 24. Ke3 {[%clk 0:00:57.1]} 24... Nh1 {[%clk 0:01:40.5]} 25.
Ne4 {[%clk 0:00:50.7]} 25... a5 {[%clk 0:01:24.3]} 26. Kf3 {[%clk 0:00:47.1]}
26... b5 {[%clk 0:01:10.9]} 27. c5 {[%clk 0:00:47.2]} 27... Ng3 {[%clk
0:01:06.8]} 28. Nxg3 {[%clk 0:00:44.8]} 28... hxg3 {[%clk 0:01:07.7]} 29. Rc7
{[%clk 0:00:44.5]} 29... Rd8 {[%clk 0:01:05.9]} 30. Rxc6 {[%clk 0:00:44.4]}
30... Rd2 {[%clk 0:01:04.6]} 31. Kxg3 {[%clk 0:00:37.9]} 31... Rxa2 {[%clk
0:01:01.2]} 32. Rc8+ {[%clk 0:00:36.6]} 32... Kh7 {[%clk 0:01:00.5]} 33. c6
{[%clk 0:00:37.3]} 33... Rb2 {[%clk 0:00:56.8]} 34. Kf4 {[%clk 0:00:34.5]} 34...
Rxb3 {[%clk 0:00:55.7]} 35. Ke5 {[%clk 0:00:35.1]} 35... Rb2 {[%clk 0:00:43]}
36. Rb8 {[%clk 0:00:29.6]} 36... Rc2 {[%clk 0:00:38.7]} 37. Kd6 {[%clk
0:00:28.2]} 37... Rd2+ {[%clk 0:00:39.2]} 38. Ke7 {[%clk 0:00:18.4]} 38... Rc2
{[%clk 0:00:33.1]} 39. Kd6 {[%clk 0:00:18.4]} 39... Rd2+ {[%clk 0:00:32.6]} 40.
Ke7 {[%clk 0:00:18.7]} 40... Rc2 {[%clk 0:00:22]} 41. Kd6 {[%clk 0:00:18.8]}
1/2-1/2

[Event "*** Titled Tuesday Blitz"]
[Site "Chess.com"]
[Date "2021.03.30"]
[Round "6"]
[White "artichaud"]
[Black "noblerone"]
[Result "0-1"]
[WhiteElo "2111"]
[BlackElo "2398"]
[TimeControl "180+1"]
[EndTime "11:06:16 PDT"]
[Termination "noblerone won on time"]

1. e4 {[%clk 0:02:59.6]} 1... c5 {[%clk 0:02:58.3]} 2. Nc3 {[%clk 0:02:59.3]}
2... a6 {[%clk 0:02:58]} 3. g3 {[%clk 0:02:59]} 3... b5 {[%clk 0:02:58.1]} 4.
Bg2 {[%clk 0:02:59.9]} 4... Bb7 {[%clk 0:02:58.7]} 5. d3 {[%clk 0:02:59.3]} 5...
e6 {[%clk 0:02:59.1]} 6. f4 {[%clk 0:02:56.5]} 6... d5 {[%clk 0:02:55.2]} 7. e5
{[%clk 0:02:46.2]} 7... b4 {[%clk 0:02:48.5]} 8. Nce2 {[%clk 0:02:45.8]} 8...
Ne7 {[%clk 0:02:47.1]} 9. Nf3 {[%clk 0:02:39.2]} 9... Nf5 {[%clk 0:02:34.2]} 10.
O-O {[%clk 0:02:34.3]} 10... h5 {[%clk 0:02:28]} 11. h4 {[%clk 0:01:34.8]} 11...
Nc6 {[%clk 0:02:15.2]} 12. Kh2 {[%clk 0:01:33.9]} 12... Nh6 {[%clk 0:01:58.1]}
13. Neg1 {[%clk 0:01:25.6]} 13... Ng4+ {[%clk 0:01:51.5]} 14. Kh1 {[%clk
0:01:25.3]} 14... Ne7 {[%clk 0:01:50.9]} 15. Nh3 {[%clk 0:01:22.5]} 15... Nf5
{[%clk 0:01:49.3]} 16. Qe1 {[%clk 0:01:23]} 16... d4 {[%clk 0:01:34.4]} 17. Nhg5
{[%clk 0:01:19.4]} 17... Be7 {[%clk 0:01:24.4]} 18. Ne4 {[%clk 0:01:17]} 18...
Rc8 {[%clk 0:01:16.3]} 19. b3 {[%clk 0:01:14.9]} 19... Bd5 {[%clk 0:01:11.7]}
20. a3 {[%clk 0:01:11.4]} 20... a5 {[%clk 0:01:08]} 21. Rg1 {[%clk 0:00:35.8]}
21... O-O {[%clk 0:00:52.8]} 22. Nh2 {[%clk 0:00:19.2]} 22... Nfe3 {[%clk
0:00:41.3]} 23. Nxg4 {[%clk 0:00:14.5]} 23... Nxg4 {[%clk 0:00:39.1]} 24. Bf3
{[%clk 0:00:10.7]} 24... f5 {[%clk 0:00:34.3]} 25. exf6 {[%clk 0:00:09.8]} 25...
Nxf6 {[%clk 0:00:34.6]} 26. Bd2 {[%clk 0:00:09.1]} 26... g6 {[%clk 0:00:30.6]}
27. Qe2 {[%clk 0:00:09]} 27... Kg7 {[%clk 0:00:29.2]} 28. Kh2 {[%clk 0:00:08]}
28... Bd6 {[%clk 0:00:23.7]} 29. Rge1 {[%clk 0:00:07.5]} 29... Re8 {[%clk
0:00:20.6]} 30. axb4 {[%clk 0:00:06.2]} 30... cxb4 {[%clk 0:00:19.9]} 31. Nxd6
{[%clk 0:00:04.7]} 31... Qxd6 {[%clk 0:00:18.9]} 32. Rxa5 {[%clk 0:00:03.5]}
32... Rxc2 {[%clk 0:00:18.6]} 0-1

[Event "*** Titled Tuesday Blitz"]
[Site "Chess.com"]
[Date "2021.03.30"]
[Round "6"]
[White "Iball95"]
[Black "Mikhal867"]
[Result "0-1"]
[WhiteElo "2639"]
[BlackElo "2437"]
[TimeControl "180+1"]
[EndTime "11:06:20 PDT"]
[Termination "Mikhal867 won on time"]

1. e4 {[%clk 0:02:56.7]} 1... g6 {[%clk 0:02:59.2]} 2. d4 {[%clk 0:02:56]} 2...
Bg7 {[%clk 0:02:58.7]} 3. Nf3 {[%clk 0:02:56.7]} 3... d6 {[%clk 0:02:58.2]} 4.
Bc4 {[%clk 0:02:57.2]} 4... a6 {[%clk 0:02:57.6]} 5. Bb3 {[%clk 0:02:55.8]} 5...
e6 {[%clk 0:02:56.7]} 6. O-O {[%clk 0:02:56.2]} 6... Ne7 {[%clk 0:02:55.3]} 7.
Re1 {[%clk 0:02:56.4]} 7... O-O {[%clk 0:02:54.9]} 8. Nbd2 {[%clk 0:02:57.1]}
8... b6 {[%clk 0:02:52.7]} 9. Nf1 {[%clk 0:02:57.2]} 9... Bb7 {[%clk 0:02:51.4]}
10. Ng3 {[%clk 0:02:57.6]} 10... h6 {[%clk 0:02:50.5]} 11. h4 {[%clk 0:02:56.1]}
11... Nd7 {[%clk 0:02:46.3]} 12. c3 {[%clk 0:02:38.3]} 12... Nf6 {[%clk
0:02:38.8]} 13. Bc2 {[%clk 0:02:29.1]} 13... Ng4 {[%clk 0:02:32.5]} 14. h5
{[%clk 0:02:24.2]} 14... e5 {[%clk 0:02:27.3]} 15. Bb3 {[%clk 0:02:04.5]} 15...
Qd7 {[%clk 0:01:42.4]} 16. Nh4 {[%clk 0:01:56.9]} 16... Kh7 {[%clk 0:01:33.1]}
17. a4 {[%clk 0:01:29.4]} 17... d5 {[%clk 0:01:26.4]} 18. dxe5 {[%clk
0:00:54.4]} 18... Nxe5 {[%clk 0:01:23]} 19. exd5 {[%clk 0:00:48.7]} 19... Bxd5
{[%clk 0:01:17.7]} 20. Bf4 {[%clk 0:00:39.6]} 20... Bxb3 {[%clk 0:01:11.8]} 21.
Qxb3 {[%clk 0:00:40.5]} 21... N7c6 {[%clk 0:01:00.5]} 22. Bxe5 {[%clk
0:00:31.4]} 22... Nxe5 {[%clk 0:00:57.6]} 23. Rad1 {[%clk 0:00:20.2]} 23... Qg4
{[%clk 0:00:56.8]} 24. Re4 {[%clk 0:00:20.6]} 24... Qg5 {[%clk 0:00:51.4]} 25.
Rde1 {[%clk 0:00:18.3]} 25... Rae8 {[%clk 0:00:45.7]} 26. hxg6+ {[%clk
0:00:11.5]} 26... fxg6 {[%clk 0:00:43.3]} 27. Qd1 {[%clk 0:00:05.4]} 27... Rf4
{[%clk 0:00:39.1]} 28. Nf3 {[%clk 0:00:04.4]} 28... Nxf3+ {[%clk 0:00:34]} 29.
gxf3 {[%clk 0:00:03]} 29... Rexe4 {[%clk 0:00:28.8]} 30. Rxe4 {[%clk 0:00:03.1]}
30... h5 {[%clk 0:00:28.6]} 31. Rxf4 {[%clk 0:00:03.1]} 31... Qxf4 {[%clk
0:00:28.7]} 32. Qd3 {[%clk 0:00:03.1]} 32... h4 {[%clk 0:00:26.6]} 33. Ne2
{[%clk 0:00:03.3]} 33... Qxa4 {[%clk 0:00:22.5]} 0-1

[Event "*** Titled Tuesday Blitz"]
[Site "Chess.com"]
[Date "2021.03.30"]
[Round "6"]
[White "chessdiamant"]
[Black "LileKoridze"]
[Result "0-1"]
[WhiteElo "2361"]
[BlackElo "2509"]
[TimeControl "180+1"]
[EndTime "11:06:22 PDT"]
[Termination "LileKoridze won by checkmate"]

1. Nf3 {[%clk 0:03:00.8]} 1... Nf6 {[%clk 0:03:00]} 2. g3 {[%clk 0:03:00.3]}
2... d5 {[%clk 0:02:59.6]} 3. Bg2 {[%clk 0:02:59.9]} 3... c5 {[%clk 0:02:58.9]}
4. O-O {[%clk 0:02:58.8]} 4... Nc6 {[%clk 0:02:59.1]} 5. c4 {[%clk 0:02:58]}
5... d4 {[%clk 0:02:59.3]} 6. b3 {[%clk 0:02:58.1]} 6... g6 {[%clk 0:02:53.6]}
7. Bb2 {[%clk 0:02:56.6]} 7... Bg7 {[%clk 0:02:52.5]} 8. e3 {[%clk 0:02:56]}
8... O-O {[%clk 0:02:50.3]} 9. exd4 {[%clk 0:02:54.8]} 9... cxd4 {[%clk
0:02:50.2]} 10. Re1 {[%clk 0:02:53.6]} 10... Re8 {[%clk 0:02:46.3]} 11. Ne5
{[%clk 0:02:47.2]} 11... Nxe5 {[%clk 0:02:36.2]} 12. Rxe5 {[%clk 0:02:48.1]}
12... Qd6 {[%clk 0:02:36.5]} 13. Re1 {[%clk 0:02:30.6]} 13... e5 {[%clk
0:02:33.3]} 14. d3 {[%clk 0:02:27]} 14... Rb8 {[%clk 0:02:31]} 15. Na3 {[%clk
0:02:24.5]} 15... a6 {[%clk 0:02:27.5]} 16. Rc1 {[%clk 0:02:08.2]} 16... Bf5
{[%clk 0:02:26.9]} 17. c5 {[%clk 0:02:07.6]} 17... Qd7 {[%clk 0:02:20.8]} 18.
Nc4 {[%clk 0:02:07]} 18... Nd5 {[%clk 0:02:11.1]} 19. Bxd5 {[%clk 0:01:55.3]}
19... Qxd5 {[%clk 0:02:10.3]} 20. Nb6 {[%clk 0:01:56.2]} 20... Qc6 {[%clk
0:02:08.6]} 21. Ba3 {[%clk 0:01:50.9]} 21... e4 {[%clk 0:02:06.8]} 22. g4 {[%clk
0:01:11.3]} 22... exd3 {[%clk 0:00:52.3]} 23. gxf5 {[%clk 0:01:08.8]} 23...
Rxe1+ {[%clk 0:00:51.7]} 24. Qxe1 {[%clk 0:01:09.7]} 24... Re8 {[%clk
0:00:47.4]} 25. Qf1 {[%clk 0:01:02.1]} 25... d2 {[%clk 0:00:44.2]} 26. Rd1
{[%clk 0:01:01.2]} 26... Qf3 {[%clk 0:00:36.4]} 27. Rxd2 {[%clk 0:00:52.9]}
27... Re4 {[%clk 0:00:36.2]} 28. h3 {[%clk 0:00:35.2]} 28... Qxf5 {[%clk
0:00:34.4]} 29. Rd3 {[%clk 0:00:33.2]} 29... Be5 {[%clk 0:00:30.1]} 30. Nd5
{[%clk 0:00:28.2]} 30... Qg5+ {[%clk 0:00:27.2]} 31. Kh1 {[%clk 0:00:26.2]}
31... Bb8 {[%clk 0:00:21.2]} 32. f3 {[%clk 0:00:17.5]} 32... Rh4 {[%clk
0:00:18]} 33. Nb6 {[%clk 0:00:07.8]} 33... Qf4 {[%clk 0:00:16.6]} 34. Rd2 {[%clk
0:00:06.9]} 34... Qxd2 {[%clk 0:00:15.1]} 35. Bc1 {[%clk 0:00:04.9]} 35... Qh2#
{[%clk 0:00:14.9]} 0-1

[Event "*** Titled Tuesday Blitz"]
[Site "Chess.com"]
[Date "2021.03.30"]
[Round "6"]
[White "KacperPolOK"]
[Black "skeyman"]
[Result "1-0"]
[WhiteElo "2437"]
[BlackElo "2217"]
[TimeControl "180+1"]
[EndTime "11:06:24 PDT"]
[Termination "KacperPolOK won by resignation"]

1. e4 {[%clk 0:02:59.9]} 1... c5 {[%clk 0:02:58.5]} 2. Nc3 {[%clk 0:02:58.3]}
2... e6 {[%clk 0:02:58.8]} 3. Nf3 {[%clk 0:02:56.7]} 3... Nc6 {[%clk 0:02:59.2]}
4. Bb5 {[%clk 0:02:55.7]} 4... Qc7 {[%clk 0:02:57.9]} 5. O-O {[%clk 0:02:54.5]}
5... Nf6 {[%clk 0:02:58]} 6. d3 {[%clk 0:02:51.7]} 6... a6 {[%clk 0:02:45.9]} 7.
Bxc6 {[%clk 0:02:49.7]} 7... Qxc6 {[%clk 0:02:46.1]} 8. e5 {[%clk 0:02:46.6]}
8... Ng4 {[%clk 0:02:43.9]} 9. Ne4 {[%clk 0:02:43.6]} 9... b5 {[%clk 0:02:43.3]}
10. h3 {[%clk 0:02:41.3]} 10... Nh6 {[%clk 0:02:43]} 11. Bxh6 {[%clk 0:02:41.8]}
11... gxh6 {[%clk 0:02:42.8]} 12. Nf6+ {[%clk 0:02:41.4]} 12... Kd8 {[%clk
0:02:43]} 13. d4 {[%clk 0:02:38.9]} 13... Bb7 {[%clk 0:02:42]} 14. c3 {[%clk
0:02:34.2]} 14... Be7 {[%clk 0:02:41.5]} 15. Ng4 {[%clk 0:02:25.3]} 15... h5
{[%clk 0:02:34.6]} 16. Ne3 {[%clk 0:02:25.3]} 16... Rg8 {[%clk 0:02:34]} 17. Kh2
{[%clk 0:02:22.7]} 17... f6 {[%clk 0:02:21.3]} 18. Qd3 {[%clk 0:02:17.6]} 18...
f5 {[%clk 0:02:20.2]} 19. Rad1 {[%clk 0:02:13.1]} 19... c4 {[%clk 0:02:20.1]}
20. d5 {[%clk 0:01:59]} 20... cxd3 {[%clk 0:02:00.3]} 21. dxc6 {[%clk
0:01:58.4]} 21... Bxc6 {[%clk 0:01:59.3]} 22. Rxd3 {[%clk 0:01:57.7]} 22... Kc7
{[%clk 0:01:59.2]} 23. Nd4 {[%clk 0:01:53.9]} 23... Bb7 {[%clk 0:01:57.4]} 24.
Rfd1 {[%clk 0:01:51.3]} 24... Rad8 {[%clk 0:01:56.8]} 25. g3 {[%clk 0:01:48.8]}
25... h4 {[%clk 0:01:54.9]} 26. Ng2 {[%clk 0:01:41]} 26... hxg3+ {[%clk
0:01:32.2]} 27. fxg3 {[%clk 0:01:40.9]} 27... Be4 {[%clk 0:01:05]} 28. R3d2
{[%clk 0:01:35.8]} 28... Bg5 {[%clk 0:01:04.5]} 29. Nf4 {[%clk 0:01:35.7]} 29...
Bxf4 {[%clk 0:01:03.7]} 30. gxf4 {[%clk 0:01:35.1]} 30... Rg7 {[%clk 0:01:03.3]}
31. Rg1 {[%clk 0:01:34.9]} 31... Rdg8 {[%clk 0:01:03.1]} 32. Rxg7 {[%clk
0:01:34.4]} 32... Rxg7 {[%clk 0:01:03.5]} 33. Nc2 {[%clk 0:01:13.6]} 33... h5
{[%clk 0:00:56.1]} 34. Ne3 {[%clk 0:01:07.5]} 34... h4 {[%clk 0:00:54.5]} 35.
Ng2 {[%clk 0:01:08]} 35... Rxg2+ {[%clk 0:00:41]} 36. Rxg2 {[%clk 0:01:08.9]}
36... Bxg2 {[%clk 0:00:41]} 37. Kxg2 {[%clk 0:01:09.8]} 37... Kc6 {[%clk
0:00:41.9]} 38. Kf3 {[%clk 0:01:08.5]} 38... Kd5 {[%clk 0:00:42.3]} 39. Ke3
{[%clk 0:01:07.7]} 39... Kc4 {[%clk 0:00:40.3]} 40. Kd2 {[%clk 0:01:07.9]} 40...
b4 {[%clk 0:00:39.1]} 41. cxb4 {[%clk 0:01:06]} 41... Kxb4 {[%clk 0:00:39.1]}
42. Kd3 {[%clk 0:01:04.8]} 42... Kc5 {[%clk 0:00:36.6]} 43. Kc3 {[%clk 0:01:04]}
43... Kd5 {[%clk 0:00:36.3]} 44. b4 {[%clk 0:01:02.6]} 44... Ke4 {[%clk
0:00:35.3]} 45. a4 {[%clk 0:01:01.9]} 45... Kd5 {[%clk 0:00:25.5]} 46. Kd3
{[%clk 0:01:01.2]} 46... d6 {[%clk 0:00:25]} 47. exd6 {[%clk 0:01:01.7]} 47...
Kxd6 {[%clk 0:00:25.2]} 48. Kd4 {[%clk 0:01:02.3]} 48... Kc6 {[%clk 0:00:16.2]}
49. Ke5 {[%clk 0:01:01.5]} 49... Kd7 {[%clk 0:00:15.3]} 50. b5 {[%clk
0:01:01.7]} 50... axb5 {[%clk 0:00:15.2]} 51. axb5 {[%clk 0:01:01.6]} 51... Ke7
{[%clk 0:00:13.3]} 52. b6 {[%clk 0:01:01.9]} 52... Kd7 {[%clk 0:00:13.7]} 53. b7
{[%clk 0:01:02]} 53... Kc7 {[%clk 0:00:14]} 54. Kxe6 {[%clk 0:01:02.6]} 54...
Kxb7 {[%clk 0:00:14.5]} 55. Kxf5 {[%clk 0:01:03.5]} 55... Kc7 {[%clk 0:00:15.2]}
56. Kg6 {[%clk 0:01:02.8]} 56... Kd7 {[%clk 0:00:15.3]} 57. f5 {[%clk
0:01:03.1]} 57... Ke8 {[%clk 0:00:15.8]} 58. Kg7 {[%clk 0:01:03.5]} 58... Ke7
{[%clk 0:00:15]} 59. f6+ {[%clk 0:01:04]} 1-0